fUST/lending_fUST_20240122
["ID","MTS","AMOUNT","RATE_DAILY","PERIOD"]
[312409043,1705863042605,-500.0,0.00027671,2]
[312409045,1705863042614,-607.21258544,0.00027671,2]
[312409047,1705863042623,-500.0,0.00027671,2]
[312409049,1705863042632,-632.6,0.00027671,2]
[312409051,1705863042644,-500.0,0.00027671,2]
[312409053,1705863042653,-192.19323195,0.00027671,2]
[312409055,1705863042662,-579.56324903,0.00027671,2]
[312409059,1705863042672,-512.85,0.00027671,2]
[312409061,1705863042683,-500.0,0.00027671,2]
[312409064,1705863042691,-336.38345013,0.00027671,2]
[312409067,1705863042700,-500.0,0.00027671,2]
[312409070,1705863042710,-500.0,0.00027671,2]
[312409073,1705863042719,-500.0,0.00027671,2]
[312409076,1705863042728,-251.91583428,0.00027671,2]
[312409079,1705863042737,-500.0,0.00027671,2]
[312409082,1705863042746,-500.0,0.00027671,2]
[312409084,1705863042755,-500.0,0.00027671,2]
[312409086,1705863042764,-500.0,0.00027671,2]
[312409089,1705863042773,-500.0,0.00027671,2]
[312409092,1705863042782,-500.0,0.00027671,2]
[312409095,1705863042791,-945.34,0.00027671,2]
[312409098,1705863042800,-500.0,0.00027671,2]
[312409100,1705863042810,-500.0,0.00027671,2]
[312409102,1705863042820,-500.0,0.00027671,2]
[312409104,1705863042829,-500.0,0.00027671,2]
[312409105,1705863042839,-928.49,0.00027671,2]
[312409108,1705863042936,-500.0,0.00027671,2]
[312409109,1705863042957,-500.0,0.00027671,2]
[312409110,1705863042968,-500.0,0.00027671,2]
[312409111,1705863042977,-500.0,0.00027671,2]
[312409112,1705863042986,-600.72,0.00027671,2]
[312409114,1705863042995,-2015.17,0.00027671,2]
[312409116,1705863043004,-500.0,0.00027671,2]
[312409118,1705863043013,-500.0,0.00027671,2]
[312409120,1705863043023,-507.59096993,0.00027671,2]
[312409121,1705863043032,-500.0,0.00027671,2]
[312409122,1705863043041,-500.0,0.00027671,2]
[312409124,1705863043050,-500.0,0.00027671,2]
[312409125,1705863043059,-2509.25,0.00027671,2]
[312409127,1705863043069,-855.7,0.00027671,2]
[312409128,1705863043078,-500.0,0.00027671,2]
[312409130,1705863043087,-540.31,0.00027671,2]
[312409131,1705863043096,-994.08,0.00027671,2]
[312409132,1705863043105,-500.0,0.00027671,2]
[312409133,1705863043114,-500.0,0.00027671,2]
[312409134,1705863043123,-500.0,0.00027671,2]
[312409135,1705863043132,-500.0,0.00027671,2]
[312409136,1705863043141,-500.0,0.00027671,2]
[312409137,1705863043150,-500.0,0.00027671,2]
[312409138,1705863043159,-906.85,0.00027671,2]
[312409139,1705863043169,-538.87,0.00027671,2]
[312409140,1705863043179,-500.0,0.00027671,2]
[312409141,1705863043188,-500.0,0.00027671,2]
[312409142,1705863043197,-516.28,0.00027671,2]
[312409143,1705863043207,-500.0,0.00027671,2]
[312409144,1705863043216,-500.0,0.00027671,2]
[312409146,1705863043225,-500.0,0.00027671,2]
[312409147,1705863043234,-500.0,0.00027671,2]
[312409150,1705863043243,-557.79,0.00027671,2]
[312409153,1705863043252,-500.0,0.00027671,2]
[312409154,1705863043262,-500.0,0.00027671,2]
[312409156,1705863043271,-500.0,0.00027671,2]
[312409157,1705863043281,-500.0,0.00027671,2]
[312409158,1705863043290,-2107.56,0.00027671,2]
[312409159,1705863043299,-1000.0,0.00027671,2]
[312409160,1705863043308,-500.0,0.00027671,2]
[312409161,1705863043317,-500.0,0.00027671,2]
[312409162,1705863043326,-500.0,0.00027671,2]
[312409163,1705863043335,-990.51,0.00027671,2]
[312409164,1705863043345,-694.59,0.00027671,2]
[312409165,1705863043354,-500.0,0.00027671,2]
[312409166,1705863043363,-500.0,0.00027671,2]
[312409167,1705863043372,-346.71546179,0.00027671,2]
[312409168,1705863043381,-500.0,0.00027671,2]
[312409169,1705863043391,-500.0,0.00027671,2]
[312409170,1705863043400,-500.0,0.00027671,2]
[312409171,1705863043409,-500.0,0.00027671,2]
[312409172,1705863043418,-500.0,0.00027671,2]
[312409173,1705863043427,-645.0704985,0.00027671,2]
[312409174,1705863043436,-511.9404377,0.00027671,2]
[312409175,1705863043445,-500.0,0.00027671,2]
[312409176,1705863043454,-500.0,0.00027671,2]
[312409177,1705863043463,-453.82432863,0.00027671,2]
[312409178,1705863043472,-500.0,0.00027671,2]
[312409179,1705863043482,-500.0,0.00027671,2]
[312409180,1705863043491,-500.0,0.00027671,2]
[312409181,1705863043500,-773.08,0.00027671,2]
[312409182,1705863043509,-500.0,0.00027671,2]
[312409183,1705863043518,-500.0,0.00027671,2]
[312409184,1705863043527,-500.0,0.00027671,2]
[312409185,1705863043537,-634.96,0.00027671,2]
[312409186,1705863043546,-1307.19,0.00027671,2]
[312409187,1705863043555,-718.63,0.00027671,2]
[312409188,1705863043564,-500.0,0.00027671,2]
[312409189,1705863043574,-500.0,0.00027671,2]
[312409190,1705863043583,-659.17,0.00027671,2]
[312409191,1705863043592,-500.0,0.00027671,2]
[312409192,1705863043601,-500.0,0.00027671,2]
[312409193,1705863043610,-500.0,0.00027671,2]
[312409194,1705863043620,-500.0,0.00027671,2]
[312409195,1705863043629,-500.0,0.00027671,2]
[312409196,1705863043641,-500.0,0.00027671,2]
[312409197,1705863043651,-500.0,0.00027671,2]
[312409198,1705863043661,-500.0,0.00027671,2]
[312409199,1705863043670,-22005.28,0.00027671,2]
[312409200,1705863043680,-500.0,0.00027671,2]
[312409201,1705863043689,-500.0,0.00027671,2]
[312409202,1705863043699,-1867.16,0.00027671,2]
[312409203,1705863043708,-5199.96,0.00027671,2]
[312409204,1705863043717,-500.0,0.00027671,2]
[312409205,1705863043727,-500.0,0.00027671,2]
[312409206,1705863043736,-792.94,0.00027671,2]
[312409207,1705863043747,-500.0,0.00027671,2]
[312409208,1705863043756,-500.0,0.00027671,2]
[312409209,1705863043769,-500.0,0.00027671,2]
[312409210,1705863043778,-500.0,0.00027671,2]
[312409211,1705863043789,-575.65,0.00027671,2]
[312409212,1705863043798,-500.0,0.00027671,2]
[312409213,1705863043807,-500.0,0.00027671,2]
[312409214,1705863043816,-500.0,0.00027671,2]
[312409215,1705863043826,-500.0,0.00027671,2]
[312409216,1705863043836,-500.0,0.00027671,2]
[312409217,1705863043846,-869.8,0.00027671,2]
[312409218,1705863043856,-500.0,0.00027671,2]
[312409220,1705863043864,-1946.9,0.00027671,2]
[312409221,1705863043873,-605.1,0.00027671,2]
[312409222,1705863043882,-500.0,0.00027671,2]
[312409223,1705863043891,-1064.28,0.00027671,2]
[312409224,1705863043900,-500.0,0.00027671,2]
[312409225,1705863043909,-14005.36,0.00027671,2]
[312409226,1705863043918,-500.0,0.00027671,2]
[312409227,1705863043929,-500.0,0.00027671,2]
[312409228,1705863043938,-1000.0,0.00027671,2]
[312409229,1705863043948,-500.0,0.00027671,2]
[312409230,1705863043957,-2301.55,0.00027671,2]
[312409231,1705863043965,-500.0,0.00027671,2]
[312409232,1705863043975,-581.17,0.00027671,2]
[312409233,1705863043984,-1072.5,0.00027671,2]
[312409234,1705863043993,-500.0,0.00027671,2]
[312409235,1705863044002,-7744.44,0.00027671,2]
[312409236,1705863044011,-500.0723576,0.00027671,2]
[312409237,1705863044021,-500.0,0.00027671,2]
[312409238,1705863044031,-596.3317369,0.00027671,2]
[312409239,1705863044040,-308.79262305,0.00027671,2]
[312409240,1705863044049,-500.0,0.00027671,2]
[312409241,1705863044058,-500.0,0.00027671,2]
[312409242,1705863044067,-1046.78,0.00027671,2]
[312409243,1705863044076,-1336.34,0.00027671,2]
[312409244,1705863044086,-500.0,0.00027671,2]
[312409245,1705863044095,-500.0,0.00027671,2]
[312409246,1705863044104,-500.0,0.00027671,2]
[312409247,1705863044113,-1834.47,0.00027671,2]
[312409248,1705863044122,-1212.92,0.00027671,2]
[312409249,1705863044132,-653.2,0.00027671,2]
[312409250,1705863044141,-500.0,0.00027671,2]
[312409251,1705863044150,-500.0,0.00027671,2]
[312409252,1705863044161,-500.0,0.00027671,2]
[312409253,1705863044170,-1357.68,0.00027671,2]
[312409254,1705863044180,-1080.91,0.00027671,2]
[312409255,1705863044189,-500.0,0.00027671,2]
[312409256,1705863044198,-500.0,0.00027671,2]
[312409257,1705863044207,-500.0,0.00027671,2]
[312409258,1705863044216,-500.0,0.00027671,2]
[312409259,1705863044226,-9516.26,0.00027671,2]
[312409260,1705863044235,-500.0,0.00027671,2]
[312409261,1705863044245,-5518.97,0.00027671,2]
[312409262,1705863044254,-529.4,0.00027671,2]
[312409263,1705863044263,-2575.48,0.00027671,2]
[312409264,1705863044273,-7025.12,0.00027671,2]
[312409265,1705863044283,-500.0,0.00027671,2]
[312409266,1705863044292,-500.0,0.00027671,2]
[312409267,1705863044301,-500.0,0.00027671,2]
[312409268,1705863044310,-1539.31,0.00027671,2]
[312409269,1705863044319,-500.0,0.00027671,2]
[312409270,1705863044329,-500.0,0.00027671,2]
[312409271,1705863044338,-1223.22,0.00027671,2]
[312409272,1705863044348,-2954.97,0.00027671,2]
[312409273,1705863044357,-1506.92,0.00027671,2]
[312409274,1705863044366,-500.0,0.00027671,2]
[312409275,1705863044375,-500.0,0.00027671,2]
[312409276,1705863044384,-500.0,0.00027671,2]
[312409277,1705863044394,-500.0,0.00027671,2]
[312409278,1705863044402,-500.0,0.00027671,2]
[312409279,1705863044411,-500.0,0.00027671,2]
[312409280,1705863044420,-767.98,0.00027671,2]
[312409281,1705863044429,-434.3626415,0.00027671,2]
[312409282,1705863044438,-199.1433421,0.00027671,2]
[312409283,1705863044448,-457.5024889,0.00027671,2]
[312409284,1705863044457,-199.1433421,0.00027671,2]
[312409285,1705863044466,-198.6223913,0.00027671,2]
[312409286,1705863044475,-153.0,0.00027671,2]
[312409287,1705863044484,-153.0,0.00027671,2]
[312409288,1705863044493,-398.0864448,0.00027671,2]
[312409289,1705863044503,-153.0,0.00027671,2]
[312409290,1705863044513,-153.0,0.00027671,2]
[312409291,1705863044522,-153.0,0.00027671,2]
[312409292,1705863044531,-153.0,0.00027671,2]
[312409293,1705863044540,-153.0,0.00027671,2]
[312409294,1705863044549,-153.0,0.00027671,2]
[312409295,1705863044558,-153.0,0.00027671,2]
[312409296,1705863044568,-1496.91898723,0.000278,2]
[312409297,1705863044579,-15870.3233152,0.00027885,3]
[312409298,1705863044588,-2289.1082276,0.00027885,3]
[312409299,1705863044596,-5000.0,0.00027885,5]
[312409300,1705863044605,-5000.0,0.00027885,5]
[312409301,1705863044615,-5365.17164815,0.00027885,3]
[312409302,1705863044625,-154.93802479,0.00027896,2]
[312409303,1705863044635,-5145.56949388,0.00027898,4]
[312409304,1705863044648,-5000.0,0.00027898,5]
[312409305,1705863044658,-5000.0,0.00027898,5]
[312409306,1705863044667,-151.0,0.00027899,2]
[312409307,1705863044676,-500.0,0.00027899,2]
[312409308,1705863044686,-500.0,0.00027899,2]
[312409309,1705863044696,-500.0,0.00027899,2]
[312409310,1705863044705,-500.0,0.00027899,2]
[312409311,1705863044714,-489.27058597,0.00027899,2]
[312409312,1705863044723,-500.0,0.00027899,2]
[312409313,1705863044732,-500.0,0.00027899,2]
[312409314,1705863044742,-426.14286062,0.00027899,2]
[312409315,1705863044751,-500.0,0.00027899,2]
[312409316,1705863044761,-250.0,0.00027899,2]
[312409317,1705863044770,-438.00381186,0.00027899,2]
[312409318,1705863044779,-500.0,0.00027899,2]
[312409319,1705863044788,-500.0,0.00027899,2]
[312409320,1705863044798,-500.0,0.00027899,2]
[312409321,1705863044807,-200.0,0.00027899,2]
[312409322,1705863044816,-250.0,0.00027899,2]
[312409323,1705863044825,-500.0,0.00027899,2]
[312409324,1705863044835,-500.0,0.00027899,2]
[312409325,1705863044845,-500.0,0.00027899,2]
[312409326,1705863044855,-427.31627086,0.00027899,2]
[312409327,1705863044863,-500.0,0.00027899,2]
[312409328,1705863044872,-303.95328726,0.00027899,2]
[312409329,1705863044882,-500.0,0.00027899,2]
[312409330,1705863044892,-500.0,0.00027899,2]
[312409331,1705863044902,-500.0,0.00027899,2]
[312409332,1705863044911,-500.0,0.00027899,2]
[312409333,1705863044919,-500.0,0.00027899,2]
[312409334,1705863044928,-200.0,0.00027899,2]
[312409335,1705863044937,-553.14337864,0.00027899,2]
[312409336,1705863044946,-311.37143275,0.00027899,2]
[312409337,1705863044955,-431.40114356,0.00027899,2]
[312409338,1705863044964,-500.0,0.00027899,2]
[312409339,1705863044973,-500.0,0.00027899,2]
[312409340,1705863044982,-500.0,0.00027899,2]
[312409341,1705863044991,-250.0,0.00027899,2]
[312409342,1705863045000,-366.95293948,0.00027899,2]
[312409343,1705863045009,-500.0,0.00027899,2]
[312409344,1705863045018,-500.0,0.00027899,2]
[312409345,1705863045027,-500.0,0.00027899,2]
[312409346,1705863045036,-500.0,0.00027899,2]
[312409347,1705863045045,-500.0,0.00027899,2]
[312409348,1705863045053,-250.0,0.00027899,2]
[312409349,1705863045063,-500.0,0.00027899,2]
[312409350,1705863045072,-250.0,0.00027899,2]
[312409351,1705863045080,-500.0,0.00027899,4]
[312409352,1705863045089,-500.0,0.00027899,4]
[312409353,1705863045098,-500.0,0.00027899,4]
[312409354,1705863045107,-500.0,0.00027899,4]
[312409355,1705863045116,-508.84617584,0.00027899,4]
[312409356,1705863045125,-597.8572635,0.00027899,4]
[312409357,1705863045134,-500.0,0.00027899,4]
[312409358,1705863045143,-500.0,0.00027899,4]
[312409359,1705863045152,-500.0,0.00027899,4]
[312409360,1705863045161,-500.0,0.00027899,4]
[312409361,1705863045170,-387.54512162,0.00027899,4]
[312409362,1705863045179,-500.0,0.00027899,4]
[312409363,1705863045187,-500.0,0.00027899,4]
[312409364,1705863045197,-500.0,0.00027899,4]
[312409365,1705863045206,-551.07343649,0.00027899,4]
[312409366,1705863045215,-500.0,0.00027899,4]
[312409367,1705863045224,-496.31669131,0.00027899,4]
[312409368,1705863045233,-500.0,0.00027899,4]
[312409369,1705863045242,-500.0,0.00027899,4]
[312409370,1705863045251,-643.12303791,0.00027899,4]
[312409371,1705863045260,-158.69005598,0.00027899,2]
[312409372,1705863045269,-4253.94127258,0.000279,2]
[312409373,1705863045537,-318524.77344488,0.000279,2]
[312409374,1705863045547,-1825.57072994,0.000279,2]
[312409375,1705863045557,-150.0,0.000279,2]
[312409376,1705863045567,-330969.77609948,0.000279,2]
[312409377,1705863045577,-1354.60028178,0.000279,5]
[312409378,1705863045586,-2088.71588189,0.000279,2]
[312409379,1705863045595,-151.0,0.000279,2]
[312409380,1705863045605,-329.451879,0.000279,2]
[312409381,1705863045614,-329.451879,0.000279,2]
[312409382,1705863045623,-151.0,0.000279,2]
[312409383,1705863045632,-5980.80293662,0.000279,2]
[312409384,1705863045648,-923.94044038,0.000279,2]
[312409385,1705863045658,-501.02517731,0.000279,2]
[312409388,1705863045741,-370.27679728,0.00027899,2]
[312409389,1705863045750,-468.03814968,0.000279,2]
[312409390,1705863045762,-5935.68005001,0.000279,2]
[312409391,1705863045770,-6904.743377,0.000279,2]
[312409392,1705863045780,-6904.743377,0.000279,2]
[312409393,1705863045789,-293.974242,0.000279,2]
[312409394,1705863045799,-293.974242,0.000279,2]
[312409395,1705863045808,-293.974242,0.000279,2]
[312409396,1705863045816,-293.974242,0.000279,2]
[312409397,1705863045825,-151.0,0.000279,2]
[312409398,1705863045834,-151.0,0.000279,2]
[312409399,1705863045843,-151.0,0.00027945,2]
[312409400,1705863045852,-151.0,0.00027945,2]
[312409401,1705863045861,-151.0,0.00027945,2]
[312409402,1705863045870,-151.0,0.00027945,2]
[312409403,1705863045879,-329.451879,0.00027945,2]
[312409404,1705863045889,-329.451879,0.00027945,2]
[312409405,1705863045897,-6904.743377,0.00027945,2]
[312409406,1705863045906,-6904.743377,0.00027945,2]
[312409407,1705863045916,-293.974242,0.00027945,2]
[312409408,1705863045924,-293.974242,0.00027945,2]
[312409409,1705863045933,-151.0,0.00027945,2]
[312409410,1705863045942,-500.0,0.00027945,2]
[312409411,1705863045952,-500.0,0.00027945,2]
[312409412,1705863045961,-488.04280479,0.00027945,2]
[312409413,1705863045970,-500.0,0.00027945,2]
[312409414,1705863045979,-500.0,0.00027945,2]
[312409415,1705863045987,-500.0,0.00027945,2]
[312409416,1705863045997,-500.0,0.00027945,2]
[312409417,1705863046006,-500.0,0.00027945,2]
[312409418,1705863046015,-861.76,0.00027945,2]
[312409419,1705863046025,-500.0,0.00027945,2]
[312409420,1705863046035,-270.22224209,0.00027945,2]
[312409421,1705863046044,-500.0,0.00027945,2]
[312409422,1705863046052,-500.0,0.00027945,2]
[312409423,1705863046061,-632.6,0.00027945,2]
[312409424,1705863046071,-500.0,0.00027945,2]
[312409425,1705863046080,-512.85,0.00027945,2]
[312409426,1705863046089,-500.0,0.00027945,2]
[312409427,1705863046097,-500.0,0.00027945,2]
[312409428,1705863046106,-500.0,0.00027945,2]
[312409429,1705863046116,-500.0,0.00027945,2]
[312409430,1705863046126,-500.0,0.00027945,2]
[312409431,1705863046135,-500.0,0.00027945,2]
[312409432,1705863046144,-500.0,0.00027945,2]
[312409433,1705863046154,-500.0,0.00027945,2]
[312409434,1705863046164,-945.34,0.00027945,2]
[312409435,1705863046173,-500.0,0.00027945,2]
[312409436,1705863046181,-500.0,0.00027945,2]
[312409437,1705863046190,-500.0,0.00027945,2]
[312409439,1705863046200,-500.0,0.00027945,2]
[312409441,1705863046209,-928.49,0.00027945,2]
[312409442,1705863046218,-500.0,0.00027945,2]
[312409444,1705863046227,-500.0,0.00027945,2]
[312409445,1705863046236,-500.0,0.00027945,2]
[312409446,1705863046246,-500.0,0.00027945,2]
[312409447,1705863046255,-600.72,0.00027945,2]
[312409448,1705863046264,-2015.17,0.00027945,2]
[312409449,1705863046273,-500.0,0.00027945,2]
[312409450,1705863046282,-500.0,0.00027945,2]
[312409451,1705863046291,-500.0,0.00027945,2]
[312409452,1705863046301,-500.0,0.00027945,2]
[312409454,1705863046311,-500.0,0.00027945,2]
[312409456,1705863046321,-2509.25,0.00027945,2]
[312409457,1705863046331,-855.7,0.00027945,2]
[312409458,1705863046340,-500.0,0.00027945,2]
[312409459,1705863046349,-540.31,0.00027945,2]
[312409460,1705863046358,-994.08,0.00027945,2]
[312409461,1705863046367,-500.0,0.00027945,2]
[312409462,1705863046375,-500.0,0.00027945,2]
[312409463,1705863046386,-500.0,0.00027945,2]
[312409464,1705863046395,-500.0,0.00027945,2]
[312409465,1705863046405,-500.0,0.00027945,2]
[312409466,1705863046415,-500.0,0.00027945,2]
[312409467,1705863046424,-906.85,0.00027945,2]
[312409468,1705863046433,-538.87,0.00027945,2]
[312409469,1705863046442,-500.0,0.00027945,2]
[312409470,1705863046451,-500.0,0.00027945,2]
[312409471,1705863046461,-516.28,0.00027945,2]
[312409472,1705863046470,-500.0,0.00027945,2]
[312409473,1705863046479,-500.0,0.00027945,2]
[312409474,1705863046488,-500.0,0.00027945,2]
[312409475,1705863046499,-500.0,0.00027945,2]
[312409476,1705863046509,-557.79,0.00027945,2]
[312409477,1705863046517,-500.0,0.00027945,2]
[312409478,1705863046527,-500.0,0.00027945,2]
[312409479,1705863046537,-500.0,0.00027945,2]
[312409480,1705863046546,-806.55529839,0.00027945,2]
[312409481,1705863046623,-966.98062925,0.00027945,2]
[312409482,1705863046689,-154.75239617,0.00026113,4]
[312409483,1705863046699,-373.21146597,0.0002767,2]
[312409484,1705863046709,-334.02407236,0.00027945,2]
[312409485,1705863046720,-398.10472408,0.00027945,2]
[312409486,1705863046762,-3.2159711,0.0002767,2]
[312419393,1705863229262,1764.73099551,0.0001631,2]
[312419394,1705863245599,656.64451311,0.000125,2]
[312419397,1705863300420,78.62449138,0.000125,2]
[312419398,1705863300450,3962.08447834,0.000125,2]
[312419399,1705863314282,1037.91552166,0.000125,2]
[312419400,1705863314309,3002.79344806,0.000125,2]
[312419401,1705863334283,1348.5269509,0.000125,2]
[312419402,1705864050081,-154.75239617,0.000235,4]
[312419403,1705864050103,-623.86586286,0.00023501,2]
[312419404,1705864050124,-3485.08832391,0.0002559,2]
[312419405,1705864050147,-446.15382027,0.000258,2]
[312419406,1705864050170,-1947.8340016,0.0002582,2]
[312419407,1705864050194,-1312.93671167,0.00026114,2]
[312419458,1705864232289,-154.75239617,0.00024656,4]
[312419460,1705864232299,-919.87974702,0.00026114,2]
[312419521,1705864238366,-782.91931114,0.00026114,2]
[312419523,1705864238378,-46984.26423017,0.00026114,2]
[312419525,1705864238387,-154.75239617,0.00026114,2]
[312419527,1705864238396,-763.82268996,0.00026114,2]
[312419529,1705864238405,-2083.87339319,0.00026114,2]
[312419531,1705864238415,-620.00503486,0.00026588,2]
[312419533,1705864238424,-4970.56290821,0.00027386,2]
[312419535,1705864238433,-2521.18,0.00027387,3]
[312419537,1705864238442,-2100.98,0.00027387,3]
[312419539,1705864238452,-1750.82,0.00027387,3]
[312419541,1705864238461,-154.93802479,0.00027395,2]
[312419542,1705864238470,-4012.27568898,0.00027396,2]
[312419543,1705864238479,-500.0,0.00027397,2]
[312419544,1705864238488,-500.0,0.00027397,2]
[312419545,1705864238498,-500.0,0.00027397,2]
[312419547,1705864238507,-500.0,0.00027397,2]
[312419549,1705864238516,-500.0,0.00027397,2]
[312419551,1705864238525,-500.0,0.00027397,2]
[312419552,1705864238534,-500.0,0.00027397,2]
[312419553,1705864238544,-500.0,0.00027397,2]
[312419554,1705864238553,-151.53580206,0.00027397,2]
[312419555,1705864238562,-500.0,0.00027397,2]
[312419556,1705864238571,-500.0,0.00027397,2]
[312419557,1705864238580,-500.0,0.00027397,2]
[312419558,1705864238590,-748.73,0.00027397,2]
[312419559,1705864238599,-586.54466235,0.00027397,2]
[312419560,1705864238608,-500.0,0.00027397,2]
[312419561,1705864238618,-500.0,0.00027397,2]
[312419562,1705864238627,-869.82,0.00027397,2]
[312419563,1705864238636,-500.0,0.00027397,2]
[312419564,1705864238645,-500.0,0.00027397,2]
[312419565,1705864238655,-500.0,0.00027397,2]
[312419566,1705864238664,-880.2,0.00027397,2]
[312419567,1705864238672,-500.0,0.00027397,2]
[312419568,1705864238682,-490.94658652,0.00027397,2]
[312419569,1705864238691,-500.0,0.00027397,2]
[312419570,1705864238700,-793.5,0.00027397,2]
[312419571,1705864238709,-500.0,0.00027397,2]
[312419572,1705864238718,-500.0,0.00027397,2]
[312419573,1705864238727,-500.0,0.00027397,2]
[312419574,1705864238736,-500.0,0.00027397,2]
[312419575,1705864238745,-500.0,0.00027397,2]
[312419576,1705864238754,-550.66,0.00027397,2]
[312419577,1705864238763,-500.0,0.00027397,2]
[312419578,1705864238773,-503.44840265,0.00027397,2]
[312419579,1705864238782,-500.0,0.00027397,2]
[312419580,1705864238791,-500.0,0.00027397,2]
[312419581,1705864238801,-500.0,0.00027397,2]
[312419582,1705864238809,-907.97,0.00027397,2]
[312419583,1705864238819,-500.0,0.00027397,2]
[312419584,1705864238828,-500.0,0.00027397,2]
[312419585,1705864238837,-500.0,0.00027397,2]
[312419586,1705864238846,-500.0,0.00027397,2]
[312419587,1705864238855,-500.0,0.00027397,2]
[312419588,1705864238864,-500.0,0.00027397,2]
[312419589,1705864238873,-500.0,0.00027397,2]
[312419590,1705864238882,-500.0,0.00027397,2]
[312419591,1705864238891,-500.0,0.00027397,2]
[312419592,1705864238900,-500.0,0.00027397,2]
[312419593,1705864238909,-500.0,0.00027397,2]
[312419594,1705864238918,-500.0,0.00027397,2]
[312419595,1705864238927,-500.0,0.00027397,2]
[312419596,1705864238936,-500.0,0.00027397,2]
[312419597,1705864238945,-582.05,0.00027397,2]
[312419598,1705864238954,-500.0,0.00027397,2]
[312419599,1705864238963,-500.0,0.00027397,2]
[312419600,1705864238972,-500.0,0.00027397,2]
[312419601,1705864238981,-1844.11,0.00027397,2]
[312419602,1705864238990,-500.0,0.00027397,2]
[312419603,1705864238999,-1000.0,0.00027397,2]
[312419604,1705864239011,-500.0,0.00027397,2]
[312419605,1705864239021,-500.0,0.00027397,2]
[312419606,1705864239030,-500.0,0.00027397,2]
[312419607,1705864239039,-500.0,0.00027397,2]
[312419608,1705864239050,-636.7,0.00027397,2]
[312419609,1705864239059,-500.0,0.00027397,2]
[312419610,1705864239068,-219.39829432,0.00027397,2]
[312419611,1705864239078,-500.0,0.00027397,2]
[312419612,1705864239087,-500.0,0.00027397,2]
[312419613,1705864239097,-500.0,0.00027397,2]
[312419614,1705864239106,-500.0,0.00027397,2]
[312419615,1705864239116,-500.0,0.00027397,2]
[312419616,1705864239125,-500.0,0.00027397,2]
[312419617,1705864239134,-500.0,0.00027397,2]
[312419618,1705864239143,-500.0,0.00027397,2]
[312419619,1705864239152,-500.0,0.00027397,2]
[312419620,1705864239161,-500.0,0.00027397,2]
[312419621,1705864239170,-554.67,0.00027397,2]
[312419622,1705864239179,-789.95,0.00027397,2]
[312419623,1705864239188,-500.0,0.00027397,2]
[312419624,1705864239197,-1001.18344881,0.00027397,5]
[312419625,1705864239207,-464.02860065,0.00027397,2]
[312419626,1705864239216,-532.73,0.00027397,2]
[312419627,1705864239226,-500.0,0.00027397,2]
[312419628,1705864239235,-500.0,0.00027397,2]
[312419629,1705864239374,-500.0,0.00027397,2]
[312419630,1705864239384,-983.13,0.00027397,2]
[312419631,1705864239393,-500.0,0.00027397,2]
[312419632,1705864239402,-500.0,0.00027397,2]
[312419633,1705864239411,-500.0,0.00027397,2]
[312419634,1705864239421,-500.0,0.00027397,2]